bitfinex-derivatives/quotes_SOLF0:USTF0_20250301
["timestamp","ask_amount","ask_price","bid_price","bid_amount"]
[1740791296393,0.04817036,146.3,146.29,37.2697525]
[1740791296797,0.04817036,146.3,146.29,31.7991525]
[1740791297597,5.51837036,146.3,146.29,31.7991525]
[1740791297795,0.04817036,146.3,146.29,31.7991525]
[1740791297992,0.04817036,146.3,146.29,37.2697525]
[1740791298298,0.04817036,146.3,146.29,31.7991525]
[1740791299795,0.04817036,146.3,146.29,16.84499443]
[1740791300094,0.04817036,146.3,146.29,20.44360976]
[1740791300298,0.04817036,146.3,146.29,37.28860419]
[1740791300596,3.5817,146.37,146.32,5.4693]
[1740791300799,3.5817,146.37,146.29,31.16589443]
[1740791301103,5.469,146.34,146.3,14.9715137]
[1740791301295,5.469,146.34,146.31,14.9715137]
[1740791301602,5.52014435,146.34,146.31,0.04588815]
[1740791301798,0.05114435,146.34,146.31,16.8765425]
[1740791302301,0.05114435,146.34,146.31,0.04588815]
[1740791302604,5.52014435,146.34,146.31,0.04588815]
[1740791302800,0.05114435,146.34,146.31,0.04588815]
[1740791303600,5.4695,146.32,146.31,0.04588815]
[1740791304502,5.4692,146.33,146.31,0.04588815]
[1740791304904,0.05114435,146.34,146.31,0.04588815]
[1740791306609,5.4695,146.32,146.31,0.04588815]
[1740791308408,0.05114435,146.34,146.31,0.04588815]
[1740791308803,5.4695,146.32,146.31,0.04588815]
[1740791309303,0.05114435,146.34,146.31,0.04588815]
[1740791309504,5.52014435,146.34,146.31,0.04588815]
[1740791310108,5.4692,146.33,146.31,0.04588815]
[1740791311008,0.05114435,146.34,146.31,0.04588815]
[1740791311214,5.4695,146.32,146.31,0.04588815]
[1740791311511,5.4695,146.32,146.31,15.0328565]
[1740791313615,5.4695,146.32,146.31,31.90190136]
[1740791325118,5.4695,146.32,146.31,31.85601321]
[1740791325321,5.472,146.26,146.2,1.7441]
[1740791325518,12.44,146.33,146.2,1.7441]
[1740791325519,32.98,146.33,146.2,16.0474]
[1740791325719,32.98,146.33,146.2,21.5211]
[1740791325921,32.98,146.33,146.2,16.0474]
[1740791326121,5.4719,146.26,146.2,16.0474]
[1740791326523,5.4719,146.26,146.23,1.94053428]
[1740791326719,5.51939902,146.26,146.23,1.94053428]
[1740791327634,0.04749902,146.26,146.24,5.4725]
[1740791327929,0.04749902,146.26,146.23,1.94053428]
[1740791328430,0.04749902,146.26,146.23,7.41313428]
[1740791329235,12.44,146.33,146.24,5.4724]
[1740791329432,5.4711,146.28,146.24,5.4724]
[1740791330329,5.4711,146.28,146.25,0.04369673]
[1740791330632,0.04403989,146.27,146.25,0.04369673]
[1740791331740,0.04403989,146.27,146.25,5.51579673]
[1740791332332,0.04403989,146.27,146.25,0.04369673]
[1740791332524,190.0,146.35,146.25,0.04369673]
[1740791332729,12.44,146.35,146.23,1.897]
[1740791333125,5.4701,146.31,146.23,1.897]
[1740791333526,5.4701,146.31,146.29,5.4706]
[1740791333934,5.51479401,146.31,146.26,0.04496105]
[1740791334331,0.04469401,146.31,146.26,0.04496105]
[1740791334537,0.04469401,146.31,146.3,5.4702]
[1740791335025,0.04469401,146.31,146.29,5.5228807]
[1740791335432,0.04469401,146.31,146.3,14.45825732]
[1740791335730,5.51459401,146.31,146.3,30.71100234]
[1740791336139,5.51459401,146.31,146.3,14.45825732]
[1740791337638,5.51459401,146.31,146.3,14.46111062]
[1740791337837,5.51459401,146.31,146.29,0.0523807]
[1740791338038,5.51459401,146.31,146.3,14.46075194]
[1740791338236,0.04469401,146.31,146.3,14.46075194]
[1740791338630,0.04469401,146.31,146.3,30.71673696]
[1740791338940,5.51459401,146.31,146.3,30.71673696]
[1740791342240,5.51459401,146.31,146.3,16.25598502]
[1740791342445,5.51459401,146.31,146.3,30.72324233]
[1740791343230,74.79619139,146.41,146.3,46.58324233]
[1740791343434,74.79619139,146.41,146.31,14.46725731]
[1740791343634,5.4671,146.39,146.34,5.4687]
[1740791343834,5.4671,146.39,146.35,14.46725731]
[1740791344034,5.4671,146.39,146.36,14.46725731]
[1740791344243,5.4671,146.39,146.37,14.46725731]
[1740791344441,0.04912927,146.39,146.36,0.05252457]
[1740791344937,5.4675,146.38,146.36,0.05252457]
[1740791345238,0.04912927,146.39,146.36,0.05252457]
[1740791346346,5.4676,146.37,146.36,0.05252457]
[1740791346540,0.04912927,146.39,146.36,0.05252457]
[1740791346842,0.04912927,146.39,146.37,14.44467109]
[1740791347035,0.04912927,146.39,146.36,5.52022457]
[1740791347236,0.04912927,146.39,146.37,14.44319885]
[1740791347443,0.04912927,146.39,146.37,5.4674]
[1740791347838,0.04912927,146.39,146.38,14.43562359]
[1740791348037,0.04912927,146.39,146.38,30.66317611]
[1740791348235,0.04912927,146.39,146.38,30.65456788]
[1740791348437,0.04912927,146.39,146.38,14.42701536]
[1740791348641,0.04912927,146.39,146.38,19.89431536]
[1740791349248,5.4654,146.43,146.39,5.4669]
[1740791349448,5.4654,146.43,146.36,5.2986]
[1740791349650,5.4654,146.43,146.37,14.41865843]
[1740791349851,12.42,146.46,146.38,14.41865843]
[1740791350054,12.42,146.46,146.37,16.20860787]
[1740791350055,5.466,146.42,146.37,16.20860787]
[1740791350255,5.466,146.42,146.38,30.62741951]
[1740791350554,0.04554369,146.41,146.38,16.25772354]
[1740791350747,0.04554369,146.41,146.38,0.04911567]
[1740791351756,0.04554369,146.41,146.38,16.23903621]
[1740791352255,0.04554369,146.41,146.38,30.63547438]
[1740791352462,0.04554369,146.41,146.38,14.44555384]
[1740791352665,5.51164369,146.41,146.38,14.44555384]
[1740791353253,5.51164369,146.41,146.38,0.04911567]
[1740791358268,12.42,146.52,146.39,14.38372024]
[1740791358468,16.0959,146.52,146.4,12.42]
[1740791359158,5.4637,146.48,146.43,5.4652]
[1740791359360,0.0519332,146.47,146.45,0.04821162]
[1740791359559,16.0959,146.52,146.45,0.04821162]
[1740791359760,0.04905936,146.47,146.45,0.04821162]
[1740791359958,0.05232088,146.47,146.45,0.04821162]
[1740791360364,0.05232088,146.47,146.45,5.51281162]
[1740791360562,3.6759,146.52,146.45,0.04821162]
[1740791361162,74.79619139,146.6,146.45,12.46821162]
[1740791361362,74.79619139,146.6,146.45,12.42]
[1740791361768,0.05089559,146.54,146.51,0.05059924]
[1740791361972,5.4607,146.56,146.46,14.38372024]
[1740791362171,0.0513053,146.54,146.51,0.04606796]
[1740791362371,87.21619139,146.6,146.45,12.42]
[1740791362573,0.05057992,146.54,146.51,0.04375071]
[1740791362760,5.4603,146.57,146.5,5.4625]
[1740791362964,0.04794,146.54,146.51,0.04820367]
[1740791363165,5.4595,146.59,146.53,5.4617]
[1740791363362,0.04471969,146.54,146.51,12.46986778]
[1740791363565,5.4595,146.59,146.51,12.47064699]
[1740791363762,0.05219478,146.54,146.51,12.47064699]
[1740791363967,5.4595,146.59,146.51,12.47064699]
[1740791364367,5.4595,146.59,146.52,5.4617]
[1740791364875,5.4595,146.59,146.52,3.625]
[1740791365076,0.04453964,146.57,146.54,0.04394949]
[1740791368469,5.50473964,146.57,146.54,0.04394949]
[1740791370780,5.4606,146.56,146.54,0.04394949]
[1740791371382,5.4609,146.55,146.54,0.04394949]
[1740791372973,0.04453964,146.57,146.54,0.04394949]
[1740791373487,0.04453964,146.57,146.54,5.50524949]
[1740791373688,0.04453964,146.57,146.54,0.04394949]
[1740791373979,0.04453964,146.57,146.54,5.50494949]
[1740791374774,5.4609,146.55,146.54,0.04394949]
[1740791376475,5.4608,146.56,146.54,0.04394949]
[1740791376670,0.04453964,146.57,146.54,0.04394949]
[1740791377285,5.4605,146.56,146.54,0.04394949]
[1740791378284,0.04453964,146.57,146.54,0.04394949]
[1740791378486,5.4609,146.55,146.54,0.04394949]
[1740791386789,3.80403964,146.57,146.44,5.3666]
[1740791386995,3.7595,146.57,146.44,5.3666]
[1740791387195,3.7595,146.57,146.44,17.7666]
[1740791388091,0.04327335,146.52,146.49,0.05208366]
[1740791389397,5.4628,146.5,146.49,0.05208366]
[1740791391485,0.04327335,146.52,146.49,0.05208366]
[1740791391896,0.04327335,146.52,146.49,12.45208366]
[1740791392100,0.04327335,146.52,146.51,5.4624]
[1740791392293,5.4607,146.56,146.49,12.45208366]
[1740791392490,5.4607,146.56,146.53,5.4616]
[1740791392695,5.4603,146.57,146.53,5.4616]
[1740791393387,0.05084541,146.56,146.54,0.04841086]
[1740791397693,0.05084541,146.56,146.55,5.4609]
[1740791400303,0.05084541,146.56,146.55,21.63767091]
[1740791400506,111.35442534,146.69,146.55,35.34521308]
[1740791400697,111.35442534,146.69,146.56,15.74834906]
[1740791400890,111.35442534,146.69,146.57,14.38372024]
[1740791401097,74.79619139,146.69,146.58,14.38372024]
[1740791401394,74.79619139,146.69,146.59,26.78372024]
[1740791401599,74.79619139,146.69,146.63,5.4579]
[1740791401600,0.04492696,146.65,146.63,5.4579]
[1740791402099,0.04492696,146.65,146.63,16.17677091]
[1740791402300,0.04492696,146.65,146.62,0.04316181]
[1740791402701,0.04492696,146.65,146.64,5.4576]
[1740791403006,71.93489139,146.69,146.64,12.4]
[1740791403202,71.93489139,146.69,146.68,5.4561]
[1740791404005,71.93489139,146.69,146.66,16.13895398]
[1740791404206,0.04336003,146.7,146.67,16.1915021]
[1740791404706,0.04336003,146.7,146.67,0.05254812]
[1740791405597,0.04336003,146.7,146.67,16.1915021]
[1740791406009,0.04336003,146.7,146.67,0.05254812]
[1740791407409,111.35442534,146.79,146.67,3.45254812]
[1740791407711,111.35442534,146.79,146.64,12.4]
[1740791407712,3.6459,146.83,146.68,32.35047422]
[1740791408019,3.6459,146.83,146.69,12.4]
[1740791408211,3.6459,146.83,146.69,28.53895398]
[1740791408713,0.04650691,146.77,146.75,0.04704481]
[1740791409012,12.4,146.82,146.75,0.04704481]
[1740791409400,0.04592073,146.8,146.75,0.04704481]
[1740791409600,0.04592073,146.8,146.76,12.4]
[1740791410001,0.04592073,146.8,146.79,5.452]
[1740791410910,0.04592073,146.8,146.78,0.04498902]
[1740791413716,0.04592073,146.8,146.72,17.8745]
[1740791414015,3.80652073,146.8,146.72,12.42]
[1740791414606,5.4528,146.77,146.72,12.42]
[1740791414815,3.7606,146.8,146.75,0.04569021]
[1740791415013,5.50016199,146.76,146.75,0.04569021]
[1740791415315,5.4531,146.76,146.75,0.04569021]
[1740791416919,0.05129492,146.79,146.68,1.8483]
[1740791417111,5.4545,146.73,146.68,5.4558]
[1740791417619,5.4551,146.71,146.67,5.4563]
[1740791417819,12.4,146.76,146.65,3.6815]
[1740791418205,12.4,146.76,146.69,0.04378295]
[1740791418206,0.04346594,146.72,146.69,0.04378295]
[1740791418815,5.49826594,146.72,146.69,0.04378295]
[1740791419619,5.455,146.71,146.69,0.04378295]
[1740791421118,0.04346594,146.72,146.69,0.04378295]
[1740791421927,0.04346594,146.72,146.69,5.49928295]
[1740791423637,0.04346594,146.72,146.69,0.04378295]
[1740791424137,190.0,146.84,146.69,12.44378295]
[1740791424337,5.5256,146.87,146.7,1.7668]
[1740791424839,5.4506,146.83,146.76,5.4529]
[1740791425240,208.0056,146.87,146.75,12.46]
[1740791425440,0.04842227,146.81,146.78,5.50178576]
[1740791425640,5.4502,146.84,146.78,5.4521]
[1740791425839,0.04911385,146.81,146.78,5.50252518]
[1740791426042,73.90362531,146.94,146.78,0.05042518]
[1740791426236,3.7436,146.9,146.75,230.6]
[1740791426536,5.4483,146.89,146.82,5.4506]
[1740791427041,3.7436,146.9,146.81,12.54]
[1740791427339,0.04420932,146.87,146.84,0.04543771]
[1740791427537,3.7436,146.9,146.77,12.54]
[1740791427842,0.04347456,146.87,146.77,12.54]
[1740791428139,5.49594744,146.83,146.82,0.04806105]
[1740791428342,12.54,146.86,146.75,12.54]
[1740791428527,1.865,146.85,146.75,12.54]
[1740791428728,5.4512,146.82,146.75,12.54]
[1740791429336,0.04407766,146.8,146.77,0.05023249]
[1740791430242,20.48,146.99,146.77,0.05023249]
[1740791430443,1.8483,146.91,146.75,12.54]
[1740791430643,14.8683,146.91,146.75,12.54]
[1740791431238,14.8683,146.91,146.8,5.4513]
[1740791431433,0.05193969,146.84,146.82,0.04365716]
[1740791431738,0.04782939,146.84,146.82,0.044138]
[1740791432530,5.49822939,146.84,146.82,0.044138]
[1740791434838,5.4505,146.83,146.82,0.044138]
[1740791438045,3.4,146.83,146.72,1.7589]
[1740791438249,1.82272939,146.84,146.72,1.7589]
[1740791438250,5.4524,146.78,146.72,1.7589]
[1740791438446,1.7749,146.84,146.72,1.7589]
[1740791438950,5.4527,146.77,146.72,1.7589]
[1740791439351,5.4527,146.77,146.73,0.04816402]
[1740791439548,0.05034878,146.76,146.73,0.04816402]
[1740791441450,5.50344878,146.76,146.73,0.04816402]
[1740791442747,5.4535,146.75,146.73,0.04816402]
[1740791442947,0.05034878,146.76,146.73,0.04816402]
[1740791443342,0.05034878,146.76,146.73,16.187118]
[1740791443942,5.50364878,146.76,146.73,16.187118]
[1740791444148,0.05034878,146.76,146.73,16.187118]
[1740791444856,0.05034878,146.76,146.74,16.13895398]
[1740791445342,0.05034878,146.76,146.75,16.13895398]
[1740791445541,0.05034878,146.76,146.74,16.13895398]
[1740791446052,0.05034878,146.76,146.73,5.50236402]
[1740791446853,0.05034878,146.76,146.74,16.12108885]
[1740791447257,0.05034878,146.76,146.75,16.12108885]
[1740791447957,5.50344878,146.76,146.75,16.12108885]
[1740791448453,0.05034878,146.76,146.75,16.12108885]
[1740791449552,0.05034878,146.76,146.75,30.50480909]
[1740791449752,0.05034878,146.76,146.75,16.12108885]
[1740791449952,0.05034878,146.76,146.75,30.50480909]
[1740791450149,0.05034878,146.76,146.75,21.57458885]
[1740791450449,0.05034878,146.76,146.75,35.95830909]
[1740791451356,5.4522,146.79,146.75,35.95830909]
[1740791451554,5.4522,146.79,146.76,14.38372024]
[1740791451850,5.4522,146.79,146.77,16.12108885]
[1740791452153,5.4522,146.79,146.76,14.36697066]
[1740791452353,5.4522,146.79,146.76,5.4531]
[1740791452555,5.49792891,146.79,146.76,5.5030983]
[1740791452847,5.49792891,146.79,146.77,30.53533787]
[1740791453249,5.49792891,146.79,146.78,16.16148388]
[1740791454348,5.4527,146.77,146.76,0.0499983]
[1740791454752,5.4527,146.77,146.76,16.21525195]
[1740791456661,5.4527,146.77,146.76,0.0499983]
[1740791457557,5.4527,146.77,146.76,16.21669273]
[1740791457759,5.4527,146.77,146.76,9.273e-05]
[1740791458152,14.4938,146.78,146.67,12.76]
[1740791458358,5.4549,146.72,146.68,14.3804501]
[1740791458559,5.4549,146.72,146.69,14.3804501]
[1740791458759,1.8385,146.76,146.7,14.3804501]
[1740791458963,5.49786352,146.72,146.71,14.3804501]
[1740791459163,5.4546,146.72,146.71,14.3804501]
[1740791460361,0.04306512,146.73,146.7,0.05153818]
[1740791460561,5.455,146.71,146.7,0.05153818]
[1740791460762,5.455,146.71,146.7,14.43261775]
[1740791461364,0.04306512,146.73,146.7,14.43392222]
[1740791461564,0.04306512,146.73,146.71,14.38122533]
[1740791461764,0.04306512,146.73,146.7,0.05153818]
[1740791461965,0.04306512,146.73,146.72,5.4546]
[1740791462168,0.04306512,146.73,146.72,14.3806962]
[1740791463264,0.04306512,146.73,146.72,19.8352962]
[1740791464766,0.04306512,146.73,146.72,14.3806962]
[1740791465862,0.04306512,146.73,146.72,19.8352962]
[1740791466365,0.00244818,146.73,146.72,19.8352962]
[1740791466556,12.72,146.81,146.75,5.4533]
[1740791466757,4.55876096,146.83,146.76,14.38639278]
[1740791466963,4.55876096,146.83,146.77,14.38639278]
[1740791467168,5.4515,146.81,146.78,14.38602186]
[1740791467370,5.4515,146.81,146.77,5.4524]
[1740791467669,5.4515,146.81,146.78,14.3881825]
[1740791467864,0.04339923,146.8,146.79,14.3881825]
[1740791471672,5.49499923,146.8,146.79,14.3881825]
[1740791472269,0.04339923,146.8,146.79,14.3881825]
[1740791472473,5.49499923,146.8,146.79,14.3881825]
[1740791473680,5.49499923,146.8,146.79,29.96555442]
[1740791474381,0.04339923,146.8,146.79,29.96555442]
[1740791474771,5.4502,146.84,146.79,35.41715442]
[1740791475080,5.4502,146.84,146.8,29.96555442]
[1740791475275,5.4502,146.84,146.81,29.96555442]
[1740791475470,5.4502,146.84,146.82,14.3881825]
[1740791475671,5.4502,146.84,146.81,15.57737192]
[1740791475877,5.4502,146.84,146.81,0.046712]
[1740791476075,5.4502,146.84,146.82,14.39449445]
[1740791476280,5.4502,146.84,146.81,0.046712]
[1740791476479,5.4502,146.84,146.82,14.39634996]
[1740791476679,16.2317,146.89,146.81,0.046712]
[1740791476881,5.4505,146.83,146.81,0.046712]
[1740791477982,5.4505,146.83,146.82,14.39499577]
[1740791478488,5.4505,146.83,146.82,14.39314982]
[1740791478976,0.8891341,146.92,146.82,14.39314982]
[1740791479182,5.4494,146.86,146.83,19.84132842]
[1740791479479,36.5523,146.91,146.83,0.04778309]
[1740791480284,16.0723,146.91,146.83,0.04778309]
[1740791480473,16.0723,146.91,146.84,14.38275211]
[1740791480673,5.4493,146.87,146.82,21.0098959]
[1740791480874,5.4493,146.87,146.86,0.05071046]
[1740791481170,5.4493,146.87,146.84,14.38118314]
[1740791481373,5.4493,146.87,146.85,0.04338748]
[1740791482078,5.4494,146.86,146.85,0.04338748]
[1740791483780,12.58,146.9,146.85,0.04338748]
[1740791485185,5.4491,146.87,146.85,0.04338748]
[1740791486384,5.4488,146.88,146.85,0.04338748]
[1740791487185,3.4723,146.91,146.85,0.04338748]
[1740791487379,5.4484,146.89,146.85,5.49288748]
[1740791487782,5.4484,146.89,146.85,0.04338748]
[1740791487977,5.4484,146.89,146.86,5.4492]
[1740791488789,5.4484,146.89,146.85,0.04338748]
[1740791488988,5.4489,146.88,146.85,5.49288748]
[1740791489190,5.4489,146.88,146.84,14.33497606]
[1740791489491,12.52,146.94,146.85,19.83478948]
[1740791489787,12.52,146.94,146.83,29.87648774]
[1740791489991,12.52,146.94,146.88,0.05105219]
[1740791490179,3.5384,146.95,146.88,0.05105219]
[1740791491285,5.4482,146.9,146.88,0.05105219]
[1740791491590,3.5384,146.95,146.88,0.05105219]
[1740791491780,5.4483,146.89,146.88,0.05105219]
[1740791507798,15.9584,146.95,146.88,0.05105219]
[1740791508004,5.4474,146.92,146.88,0.05105219]
[1740791508804,5.447,146.93,146.88,0.05105219]
[1740791509005,5.447,146.93,146.87,5.3629]
[1740791509203,5.447,146.93,146.89,0.04951313]
[1740791509704,5.447,146.93,146.89,5.49761313]
[1740791511899,5.447,146.93,146.89,19.84608121]
[1740791512297,5.447,146.93,146.89,5.49761313]
[1740791512903,5.4466,146.94,146.91,5.4475]
[1740791513104,12.38,146.98,146.88,15.54151168]
[1740791513300,12.38,146.98,146.91,0.05133116]
[1740791514306,5.4466,146.94,146.91,0.05133116]
[1740791516114,5.4462,146.95,146.91,5.49863116]
[1740791517415,5.4458,146.96,146.93,5.4468]
[1740791517815,5.4458,146.96,146.93,5.49825584]
[1740791518411,5.4458,146.96,146.93,0.05145584]
[1740791519517,5.4461,146.95,146.93,0.05145584]
[1740791520819,5.4464,146.94,146.93,0.05145584]
[1740791521012,5.4464,146.94,146.93,14.40914167]
[1740791526314,5.4464,146.94,146.93,0.05145584]
[1740791528218,5.4464,146.94,146.93,14.41403177]
[1740791528425,5.4464,146.94,146.93,14.4128056]
[1740791529427,5.4464,146.94,146.93,0.05145584]
[1740791529727,5.4464,146.94,146.93,14.41328607]
[1740791530418,5.4464,146.94,146.93,0.05145584]
[1740791530814,5.4468,146.93,146.92,1.46334597]
[1740791531021,12.38,146.96,146.89,14.36492185]
[1740791531222,12.38,146.96,146.9,14.36492185]
[1740791531428,12.38,146.96,146.85,5.4496]
[1740791531730,12.38,146.96,146.86,14.36795062]
[1740791532029,0.04953733,146.92,146.89,0.04507432]
[1740791532731,5.4482,146.9,146.89,0.04507432]
[1740791532932,5.4482,146.9,146.89,14.41538292]
[1740791534534,111.35442534,147.03,146.89,26.79538292]
[1740791534735,73.90362531,147.02,146.9,19.7804086]
[1740791535033,73.90362531,147.02,146.91,14.3703086]
[1740791535226,73.90362531,147.02,146.93,5.4466]
[1740791535420,73.90362531,147.02,146.94,14.3703086]
[1740791535625,94.38362531,147.02,146.97,6.732e-05]
[1740791535832,94.38362531,147.02,146.9,14.36418779]
[1740791536133,3.9719,147.01,146.91,14.36418779]
[1740791536333,12.38,147.0,146.92,14.36418779]
[1740791536535,12.38,147.0,146.89,17.828]
[1740791536735,5.4459,146.96,146.9,14.36696086]
[1740791536934,5.49632969,146.96,146.93,0.05162493]
[1740791537636,0.05042969,146.96,146.93,0.05162493]
[1740791538436,5.446,146.95,146.93,0.05162493]
[1740791538634,0.05042969,146.96,146.93,0.05162493]
[1740791538936,5.4464,146.94,146.93,0.05162493]
[1740791546137,12.38,146.95,146.9,14.96389224]
[1740791546341,16.103,146.95,146.86,14.96389224]
[1740791546639,16.103,146.95,146.87,14.38858223]
[1740791546831,5.4485,146.89,146.88,14.38858223]
[1740791558249,5.4485,146.89,146.87,0.04797874]
[1740791558250,0.04998502,146.9,146.87,0.04797874]
[1740791558437,5.4486,146.88,146.87,0.04797874]
[1740791558838,5.4486,146.88,146.87,14.44060786]
[1740791559041,5.49808502,146.9,146.87,14.44060786]
[1740791559349,0.04998502,146.9,146.88,14.39262912]
[1740791559548,0.04998502,146.9,146.89,14.39262912]
[1740791561646,5.49788502,146.9,146.89,14.39262912]
[1740791566352,0.04998502,146.9,146.89,14.39262912]
[1740791566743,0.04998502,146.9,146.89,29.37058969]
[1740791568358,0.04998502,146.9,146.89,14.39262912]
[1740791568950,0.04998502,146.9,146.89,29.37058969]
[1740791569952,0.00284981,146.9,146.89,34.81888969]
[1740791570152,0.8887746,146.96,146.89,29.37058969]
[1740791570348,6.3346746,146.96,146.91,5.4473]
[1740791570657,6.3346746,146.96,146.92,29.37058969]
[1740791570854,6.3346746,146.96,146.93,14.39262912]
[1740791571045,6.3346746,146.96,146.94,14.39262912]
[1740791571246,6.3346746,146.96,146.92,5.447]
[1740791571445,0.93959917,146.96,146.94,0.04895291]
[1740791571649,0.93959917,146.96,146.95,14.39148668]
[1740791578163,6.38529917,146.96,146.95,14.39148668]
[1740791579366,6.38529917,146.96,146.94,0.04593145]
[1740791580065,6.38529917,146.96,146.95,14.37539608]
[1740791581465,6.38529917,146.96,146.94,0.04593145]
[1740791581466,0.93959917,146.96,146.94,0.04593145]
[1740791581670,5.446,146.95,146.94,0.04593145]
[1740791584577,5.446,146.95,146.94,3.145e-05]
[1740791587984,0.05082457,146.96,146.94,3.145e-05]
[1740791588881,16.57523138,147.0,146.94,3.145e-05]
[1740791589675,18.29863138,147.0,146.94,3.145e-05]
[1740791589876,5.446,146.95,146.94,3.145e-05]
[1740791590080,17.826,146.95,146.94,3.145e-05]
[1740791594485,5.446,146.95,146.94,3.145e-05]
[1740791595079,5.4459,146.96,146.94,3.145e-05]
[1740791595273,0.0437907,146.98,146.94,3.145e-05]
[1740791595486,12.4237907,146.98,146.94,3.145e-05]
[1740791595681,12.4237907,146.98,146.95,14.04654089]
[1740791595887,12.4237907,146.98,146.94,3.145e-05]
[1740791596182,12.4237907,146.98,146.95,14.04678761]
[1740791596385,12.4237907,146.98,146.94,3.145e-05]
[1740791596583,12.4237907,146.98,146.95,14.04380443]
[1740791596781,12.4237907,146.98,146.95,5.446]
[1740791596984,12.4237907,146.98,146.94,3.145e-05]
[1740791597181,12.4237907,146.98,146.95,14.04411988]
[1740791597485,12.4237907,146.98,146.94,3.145e-05]
[1740791597676,12.4237907,146.98,146.95,14.04190639]
[1740791597872,12.4237907,146.98,146.94,3.145e-05]
[1740791598085,0.0437907,146.98,146.95,14.04202242]
[1740791598278,0.0437907,146.98,146.94,3.145e-05]
[1740791598279,0.0437907,146.98,146.94,1.73153145]
[1740791598588,5.4886907,146.98,146.94,1.73153145]
[1740791598784,5.4886907,146.98,146.95,14.04038979]
[1740791598992,5.4886907,146.98,146.94,1.73153145]
[1740791599283,5.4886907,146.98,146.95,14.04010654]
[1740791599487,5.4886907,146.98,146.94,1.73153145]
[1740791599488,0.0437907,146.98,146.94,1.73153145]
[1740791599688,0.0437907,146.98,146.95,14.03829507]
[1740791599985,0.0437907,146.98,146.94,1.73153145]
[1740791600191,0.0437907,146.98,146.95,14.03789866]
[1740791600390,0.0437907,146.98,146.94,16.70337633]
[1740791600591,0.0437907,146.98,146.95,14.0359155]
[1740791600887,0.0437907,146.98,146.94,1.73153145]
[1740791601188,0.0437907,146.98,146.95,14.03624196]
[1740791601488,0.0437907,146.98,146.94,1.73153145]
[1740791601690,0.0437907,146.98,146.95,14.03421495]
[1740791601986,5.4457,146.96,146.94,1.73153145]
[1740791603084,5.446,146.95,146.94,3.145e-05]
[1740791609990,25.926,146.95,146.94,3.145e-05]
[1740791610183,29.326,146.95,146.94,3.145e-05]
[1740791610578,30.49631648,146.95,146.94,3.145e-05]
[1740791610887,29.326,146.95,146.94,3.145e-05]
[1740791611086,30.4964956,146.95,146.94,3.145e-05]
[1740791611290,29.326,146.95,146.94,3.145e-05]
[1740791611685,25.926,146.95,146.94,3.145e-05]
[1740791612287,29.326,146.95,146.94,3.145e-05]
[1740791612992,25.926,146.95,146.94,3.145e-05]
[1740791613896,38.306,146.95,146.94,3.145e-05]
[1740791618795,5.446,146.95,146.94,3.145e-05]
[1740791620794,25.926,146.95,146.94,3.145e-05]
[1740791621099,29.326,146.95,146.94,3.145e-05]
[1740791621399,219.326,146.95,146.94,3.145e-05]
[1740791624498,220.4973778,146.95,146.94,3.145e-05]
[1740791626605,232.22635347,146.95,146.94,3.145e-05]
[1740791627296,220.4973778,146.95,146.94,3.145e-05]
[1740791628294,5.4509,146.82,146.81,5.459]
[1740791629694,0.04445894,146.83,146.81,5.459]
[1740791629894,5.4502,146.84,146.81,5.459]
[1740791630907,12.38,146.85,146.81,5.459]
[1740791630908,17.8299,146.85,146.81,5.459]
[1740791631105,12.38,146.88,146.81,5.459]
[1740791631297,158.892,146.96,146.81,5.459]
[1740791631298,5.4481,146.9,146.81,19.47986454]
[1740791631609,202.38,146.93,146.85,5.4494]
[1740791631805,12.38,146.93,146.85,5.4494]
[1740791632011,12.38,146.93,146.88,0.0518059]
[1740791632713,5.4476,146.91,146.88,0.0518059]
[1740791633113,12.38,146.93,146.88,0.0518059]
[1740791633314,5.4481,146.9,146.88,0.0518059]
[1740791634106,12.38,146.93,146.88,0.0518059]
[1740791634414,5.4474,146.92,146.88,0.0518059]
[1740791634614,5.4474,146.92,146.84,26.40086454]
[1740791634812,5.4474,146.92,146.89,0.04634584]
[1740791635011,5.4469,146.93,146.89,0.04634584]
[1740791636412,5.4472,146.92,146.89,0.04634584]
[1740791637220,5.4478,146.91,146.89,0.04634584]
[1740791637804,5.4479,146.9,146.89,0.04634584]
[1740791638009,2.5897,146.9,146.89,0.04634584]
[1740791640114,2.5897,146.9,146.89,4.584e-05]
[1740791640912,14.9697,146.9,146.89,4.584e-05]
[1740791649221,0.0493645,146.91,146.89,4.584e-05]